[Event "GrandPrix_29.05"]
[Site "Chess.com"]
[Date "2020.05.29"]
[Round "2"]
[White "Tyoma88888"]
[Black "Guenplen"]
[Result "1-0"]
[WhiteElo "2214"]
[BlackElo "1513"]
[TimeControl "600+2"]
[EndTime "9:53:25 PDT"]
[Termination "Tyoma88888 won by resignation"]

1. e4 {[%clk 0:10:01.9]} 1... c5 {[%clk 0:10:00.4]} 2. Nc3 {[%clk 0:10:02.9]}
2... a6 {[%clk 0:09:59.4]} 3. g3 {[%clk 0:10:03.3]} 3... b5 {[%clk 0:10:00.1]}
4. Bg2 {[%clk 0:10:03.5]} 4... Bb7 {[%clk 0:10:01.3]} 5. d3 {[%clk 0:10:05.1]}
5... e6 {[%clk 0:09:59.2]} 6. Nh3 {[%clk 0:10:06]} 6... Be7 {[%clk 0:09:55.6]}
7. O-O {[%clk 0:10:06.7]} 7... h5 {[%clk 0:09:33]} 8. f4 {[%clk 0:09:56.1]} 8...
b4 {[%clk 0:09:05.5]} 9. Ne2 {[%clk 0:09:51]} 9... Nh6 {[%clk 0:08:42.3]} 10. d4
{[%clk 0:09:05.6]} 10... d5 {[%clk 0:08:31.8]} 11. f5 {[%clk 0:08:34.5]} 11...
exf5 {[%clk 0:08:08.8]} 12. exf5 {[%clk 0:08:22.9]} 12... Nd7 {[%clk 0:07:56.7]}
13. Nef4 {[%clk 0:08:05.4]} 13... Nf6 {[%clk 0:07:42.3]} 14. Nxh5 {[%clk
0:07:48.1]} 14... Nxh5 {[%clk 0:06:34.6]} 15. Qxh5 {[%clk 0:07:50]} 15... Qb6
{[%clk 0:06:33.9]} 16. Bg5 {[%clk 0:07:29.5]} 16... Bxg5 {[%clk 0:06:02.9]} 17.
Qxg5 {[%clk 0:07:28.5]} 17... Qf6 {[%clk 0:06:01.4]} 18. Rae1+ {[%clk
0:06:58.9]} 18... Kf8 {[%clk 0:05:54.7]} 19. dxc5 {[%clk 0:06:30.6]} 19... Rc8
{[%clk 0:05:44.4]} 20. Qf4 {[%clk 0:05:08.2]} 20... Qc6 {[%clk 0:05:00.6]} 21.
Qd6+ {[%clk 0:03:49.8]} 21... Kg8 {[%clk 0:04:40.9]} 22. Re7 {[%clk 0:03:33.3]}
22... Ng4 {[%clk 0:04:25.7]} 23. Qxc6 {[%clk 0:03:13.1]} 23... Bxc6 {[%clk
0:04:25.3]} 24. Rf4 {[%clk 0:03:13.7]} 24... Nf6 {[%clk 0:04:04.5]} 25. Rxb4
{[%clk 0:03:13.2]} 25... Rh5 {[%clk 0:04:02.2]} 26. g4 {[%clk 0:03:02.2]} 26...
Rh4 {[%clk 0:04:03.1]} 27. Nf2 {[%clk 0:02:53.2]} 27... d4 {[%clk 0:04:04.4]}
28. Bxc6 {[%clk 0:02:22.9]} 28... Rxc6 {[%clk 0:04:06.3]} 29. g5 {[%clk
0:02:17.5]} 29... Rxc5 {[%clk 0:03:46.4]} 30. Rb8+ {[%clk 0:02:11.8]} 30... Kh7
{[%clk 0:03:46.4]} 31. gxf6 {[%clk 0:01:37.2]} 31... Rxf5 {[%clk 0:03:42]} 32.
Rxf7 {[%clk 0:01:35.2]} 32... Kg6 {[%clk 0:03:42.6]} 33. Rxg7+ {[%clk 0:01:10]}
33... Kxf6 {[%clk 0:03:43.6]} 34. Rf8+ {[%clk 0:01:10.5]} 34... Kxg7 {[%clk
0:03:37.6]} 35. Rxf5 {[%clk 0:01:11.6]} 35... Kg6 {[%clk 0:03:39.5]} 36. Ra5
{[%clk 0:01:12.3]} 36... Rh8 {[%clk 0:03:38.4]} 37. Rxa6+ {[%clk 0:01:13.2]}
37... Kf5 {[%clk 0:03:39.9]} 38. Rc6 {[%clk 0:01:06.5]} 38... Kf4 {[%clk
0:03:39.3]} 39. Re6 {[%clk 0:01:01.4]} 39... Kf3 {[%clk 0:03:37]} 40. Kf1 {[%clk
0:00:58.3]} 40... Rg8 {[%clk 0:03:32.2]} 41. Rf6+ {[%clk 0:00:58.9]} 41... Ke3
{[%clk 0:03:32.3]} 42. Re6+ {[%clk 0:00:43]} 42... Kf3 {[%clk 0:03:32.9]} 43.
Nd3 {[%clk 0:00:34.7]} 43... Rg1+ {[%clk 0:03:31.9]} 44. Kxg1 {[%clk 0:00:35]}
44... Kg4 {[%clk 0:03:30.5]} 45. Ra6 {[%clk 0:00:33.4]} 1-0

[Event "GrandPrix_29.05"]
[Site "Chess.com"]
[Date "2020.05.29"]
[Round "2"]
[White "WhiteCapital80"]
[Black "StephenDedalus83"]
[Result "1-0"]
[WhiteElo "2045"]
[BlackElo "1878"]
[TimeControl "600+2"]
[EndTime "9:53:36 PDT"]
[Termination "WhiteCapital80 won by resignation"]

1. e4 {[%clk 0:08:58.6]} 1... c5 {[%clk 0:09:59.4]} 2. Nf3 {[%clk 0:08:58.7]}
2... Nc6 {[%clk 0:10:00.1]} 3. d4 {[%clk 0:08:59]} 3... cxd4 {[%clk 0:10:02]} 4.
Nxd4 {[%clk 0:08:55]} 4... Qc7 {[%clk 0:10:03.5]} 5. Nc3 {[%clk 0:08:55.7]} 5...
e6 {[%clk 0:10:04]} 6. Be2 {[%clk 0:08:54.1]} 6... a6 {[%clk 0:10:04.8]} 7. O-O
{[%clk 0:08:53.8]} 7... Nf6 {[%clk 0:10:05]} 8. a4 {[%clk 0:08:54.1]} 8... h5
{[%clk 0:09:48.6]} 9. h3 {[%clk 0:07:48.2]} 9... Bc5 {[%clk 0:08:34.1]} 10. Nb3
{[%clk 0:07:30.2]} 10... Ba7 {[%clk 0:08:33.7]} 11. Kh1 {[%clk 0:07:11.1]} 11...
d6 {[%clk 0:07:55.2]} 12. Bf4 {[%clk 0:06:36.6]} 12... Ne5 {[%clk 0:07:54.5]}
13. Qd2 {[%clk 0:06:22.4]} 13... Bd7 {[%clk 0:06:36.4]} 14. Rad1 {[%clk
0:06:22.4]} 14... Bb8 {[%clk 0:06:37.3]} 15. Bg3 {[%clk 0:05:46.9]} 15... h4
{[%clk 0:06:36]} 16. Bh2 {[%clk 0:05:46.3]} 16... Bc6 {[%clk 0:06:34.9]} 17. f4
{[%clk 0:05:29.9]} 17... Ned7 {[%clk 0:06:32.9]} 18. Bf3 {[%clk 0:05:30.6]}
18... e5 {[%clk 0:05:20]} 19. fxe5 {[%clk 0:05:24.4]} 19... Nxe5 {[%clk
0:05:20.9]} 20. Nd4 {[%clk 0:05:18]} 20... g6 {[%clk 0:04:51.6]} 21. Nxc6 {[%clk
0:04:46.2]} 21... bxc6 {[%clk 0:04:50.6]} 22. Bxe5 {[%clk 0:04:33]} 22... dxe5
{[%clk 0:04:50.8]} 23. Be2 {[%clk 0:04:32.2]} 23... Nh5 {[%clk 0:04:09.2]} 24.
Bxh5 {[%clk 0:04:21.2]} 24... Rxh5 {[%clk 0:04:10]} 25. Rf3 {[%clk 0:03:40.8]}
25... Ba7 {[%clk 0:04:02.1]} 26. Rd3 {[%clk 0:03:06.7]} 26... Kf8 {[%clk
0:02:51.3]} 27. Rd7 {[%clk 0:02:52.5]} 27... Qb6 {[%clk 0:02:51.5]} 28. Qd6+
{[%clk 0:02:35.8]} 28... Kg8 {[%clk 0:02:29.8]} 29. Qf6 {[%clk 0:02:15]} 29...
Rf8 {[%clk 0:00:56.9]} 30. Rd8 {[%clk 0:02:07.9]} 1-0

[Event "GrandPrix_29.05"]
[Site "Chess.com"]
[Date "2020.05.29"]
[Round "2"]
[White "Sergey_Krivenko"]
[Black "Zakaryan_David"]
[Result "0-1"]
[WhiteElo "2068"]
[BlackElo "1264"]
[TimeControl "600+2"]
[EndTime "9:53:41 PDT"]
[Termination "Zakaryan_David won by resignation"]

1. d4 {[%clk 0:10:01.9]} 1... Nf6 {[%clk 0:09:53]} 2. Nf3 {[%clk 0:10:00.1]}
2... g6 {[%clk 0:09:50.8]} 3. Bg5 {[%clk 0:09:59]} 3... Ne4 {[%clk 0:09:46.8]}
4. Bf4 {[%clk 0:09:46.6]} 4... Bg7 {[%clk 0:09:46.5]} 5. Nbd2 {[%clk 0:09:42.6]}
5... Nf6 {[%clk 0:08:49.9]} 6. c3 {[%clk 0:09:17.2]} 6... c5 {[%clk 0:08:31.3]}
7. dxc5 {[%clk 0:08:52.2]} 7... Na6 {[%clk 0:08:31.1]} 8. Nb3 {[%clk 0:08:28.8]}
8... b6 {[%clk 0:07:25.4]} 9. cxb6 {[%clk 0:06:28.7]} 9... axb6 {[%clk
0:07:18.2]} 10. Qc1 {[%clk 0:05:38.7]} 10... h6 {[%clk 0:07:11.4]} 11. g3 {[%clk
0:05:21.2]} 11... Bb7 {[%clk 0:07:10.7]} 12. Bg2 {[%clk 0:05:22]} 12... g5
{[%clk 0:07:10.1]} 13. Bd2 {[%clk 0:05:10.9]} 13... d6 {[%clk 0:06:48.4]} 14.
O-O {[%clk 0:04:59.3]} 14... Nc5 {[%clk 0:06:46.3]} 15. Nfd4 {[%clk 0:04:38]}
15... Bxg2 {[%clk 0:06:40.4]} 16. Kxg2 {[%clk 0:04:39.9]} 16... Qd7 {[%clk
0:06:41.9]} 17. Qc2 {[%clk 0:04:28.8]} 17... e6 {[%clk 0:06:29.9]} 18. f3 {[%clk
0:04:21.4]} 18... d5 {[%clk 0:06:23.1]} 19. Be3 {[%clk 0:04:06.7]} 19... O-O
{[%clk 0:06:16.9]} 20. h4 {[%clk 0:02:29.4]} 20... g4 {[%clk 0:06:05.9]} 21. Qd2
{[%clk 0:02:06.9]} 21... Kh7 {[%clk 0:06:05.2]} 22. Nc2 {[%clk 0:01:55.3]} 22...
Qc7 {[%clk 0:05:35.9]} 23. Bf4 {[%clk 0:01:26.4]} 23... e5 {[%clk 0:05:36.3]}
24. Be3 {[%clk 0:01:27.2]} 24... Rad8 {[%clk 0:05:33.6]} 25. Nb4 {[%clk
0:01:25.6]} 25... Rg8 {[%clk 0:05:21.7]} 26. Nxc5 {[%clk 0:01:23.9]} 26... bxc5
{[%clk 0:05:23.6]} 27. Na6 {[%clk 0:01:24.6]} 27... Qc6 {[%clk 0:05:23.6]} 28.
Nxc5 {[%clk 0:01:24.3]} 28... d4 {[%clk 0:05:24]} 29. cxd4 {[%clk 0:01:24.1]}
29... exd4 {[%clk 0:05:25.4]} 30. Bxd4 {[%clk 0:01:19.7]} 30... gxf3+ {[%clk
0:05:07.4]} 31. Rxf3 {[%clk 0:01:01]} 31... Nh5 {[%clk 0:04:33.9]} 32. e3 {[%clk
0:00:52.6]} 32... Bxd4 {[%clk 0:04:33.7]} 33. Qd3+ {[%clk 0:00:45.6]} 33... Kh8
{[%clk 0:04:33.8]} 34. exd4 {[%clk 0:00:44.8]} 34... Rxg3+ {[%clk 0:04:34.8]}
35. Kf2 {[%clk 0:00:45.4]} 35... Rg2+ {[%clk 0:04:20.9]} 36. Kf1 {[%clk
0:00:41.1]} 36... Rdg8 {[%clk 0:04:18.8]} 37. Qc3 {[%clk 0:00:22.2]} 37... Rg1+
{[%clk 0:04:17.7]} 38. Kf2 {[%clk 0:00:22.5]} 38... R8g2+ {[%clk 0:04:19.2]} 39.
Ke3 {[%clk 0:00:23.3]} 39... Qe8+ {[%clk 0:04:07.8]} 40. Ne4 {[%clk 0:00:22.7]}
40... Rxa1 {[%clk 0:04:00.8]} 41. d5+ {[%clk 0:00:22.9]} 41... Kg8 {[%clk
0:03:57.7]} 42. d6 {[%clk 0:00:14.9]} 42... Rd1 {[%clk 0:03:56.2]} 43. Qb4
{[%clk 0:00:04.5]} 43... Rg6 {[%clk 0:03:47.3]} 44. d7 {[%clk 0:00:03.8]} 44...
Rxd7 {[%clk 0:03:47.6]} 0-1

[Event "GrandPrix_29.05"]
[Site "Chess.com"]
[Date "2020.05.29"]
[Round "2"]
[White "monalize"]
[Black "GadimbayliA"]
[Result "0-1"]
[WhiteElo "2066"]
[BlackElo "2538"]
[TimeControl "600+2"]
[EndTime "9:53:49 PDT"]
[Termination "GadimbayliA won by resignation"]

1. e4 {[%clk 0:09:59.1]} 1... e5 {[%clk 0:10:01.2]} 2. Nf3 {[%clk 0:09:59.1]}
2... d5 {[%clk 0:10:02.3]} 3. exd5 {[%clk 0:09:55.1]} 3... e4 {[%clk 0:10:04.2]}
4. Qe2 {[%clk 0:08:42.1]} 4... Nf6 {[%clk 0:10:03.8]} 5. Nc3 {[%clk 0:08:18.1]}
5... Be7 {[%clk 0:10:04.3]} 6. Nxe4 {[%clk 0:07:03.2]} 6... O-O {[%clk
0:10:04.9]} 7. Nxf6+ {[%clk 0:06:04.6]} 7... Bxf6 {[%clk 0:10:06.8]} 8. d4
{[%clk 0:06:05.5]} 8... Bg4 {[%clk 0:09:48.7]} 9. Be3 {[%clk 0:06:04.5]} 9...
Qxd5 {[%clk 0:09:49.2]} 10. h3 {[%clk 0:05:42.2]} 10... Bxf3 {[%clk 0:09:48.9]}
11. Qxf3 {[%clk 0:05:42.3]} 11... Qa5+ {[%clk 0:09:50.2]} 12. c3 {[%clk
0:05:41.9]} 12... Nc6 {[%clk 0:09:51.3]} 13. Qd1 {[%clk 0:04:25.3]} 13... Rad8
{[%clk 0:06:18.3]} 14. Qd2 {[%clk 0:04:07.7]} 14... Qd5 {[%clk 0:06:06.9]} 15.
b3 {[%clk 0:03:48.6]} 15... Rfe8 {[%clk 0:06:04.8]} 16. O-O-O {[%clk 0:03:48.5]}
16... b5 {[%clk 0:05:50.9]} 17. Be2 {[%clk 0:02:35.2]} 17... b4 {[%clk
0:04:47.5]} 18. Bf3 {[%clk 0:02:28.4]} 18... Qd6 {[%clk 0:04:48.6]} 19. cxb4
{[%clk 0:02:16.9]} 19... Nxd4 {[%clk 0:03:45.7]} 20. Bxd4 {[%clk 0:02:10]} 20...
Bxd4 {[%clk 0:03:47.6]} 21. Kb1 {[%clk 0:02:07.8]} 21... g6 {[%clk 0:03:27.9]}
22. Rhe1 {[%clk 0:02:06.4]} 22... Rxe1 {[%clk 0:03:29]} 23. Rxe1 {[%clk
0:02:06.4]} 23... Kg7 {[%clk 0:03:24.2]} 24. Rc1 {[%clk 0:02:01.8]} 24... Qe5
{[%clk 0:03:17.9]} 25. Re1 {[%clk 0:01:56]} 25... Qf6 {[%clk 0:03:17.3]} 26. Rc1
{[%clk 0:01:49.6]} 26... Qb6 {[%clk 0:01:31.2]} 27. Rc6 {[%clk 0:01:40.2]} 27...
Qb5 {[%clk 0:01:31]} 28. Rc4 {[%clk 0:01:39.1]} 28... Bf6 {[%clk 0:01:30.8]} 29.
Qc2 {[%clk 0:01:39.4]} 29... Qe5 {[%clk 0:01:30.2]} 0-1

[Event "GrandPrix_29.05"]
[Site "Chess.com"]
[Date "2020.05.29"]
[Round "2"]
[White "Gordima"]
[Black "AnotherGrumpy"]
[Result "1-0"]
[WhiteElo "2199"]
[BlackElo "1756"]
[TimeControl "600+2"]
[EndTime "9:53:56 PDT"]
[Termination "Gordima won by resignation"]

1. d4 {[%clk 0:10:01.9]} 1... d5 {[%clk 0:09:57.4]} 2. c4 {[%clk 0:10:02.6]}
2... c6 {[%clk 0:09:57.4]} 3. Nf3 {[%clk 0:10:02.7]} 3... Nf6 {[%clk 0:09:58.6]}
4. e3 {[%clk 0:10:02.4]} 4... Bg4 {[%clk 0:09:57.6]} 5. h3 {[%clk 0:10:02.1]}
5... Bxf3 {[%clk 0:09:55.3]} 6. Qxf3 {[%clk 0:10:02.8]} 6... e6 {[%clk
0:09:56.8]} 7. Bd3 {[%clk 0:10:03.6]} 7... Nbd7 {[%clk 0:09:57.6]} 8. O-O {[%clk
0:10:01.9]} 8... Bb4 {[%clk 0:09:55.6]} 9. Nc3 {[%clk 0:09:53]} 9... O-O {[%clk
0:09:54.2]} 10. a3 {[%clk 0:09:52.9]} 10... Ba5 {[%clk 0:09:52.5]} 11. Qd1
{[%clk 0:09:46.4]} 11... Re8 {[%clk 0:09:47.7]} 12. Bd2 {[%clk 0:09:37.2]} 12...
Rc8 {[%clk 0:09:37.6]} 13. Rc1 {[%clk 0:09:34.2]} 13... Bc7 {[%clk 0:09:23.7]}
14. Qb3 {[%clk 0:09:06.4]} 14... Nf8 {[%clk 0:08:58]} 15. Qxb7 {[%clk
0:08:43.2]} 15... Qd6 {[%clk 0:08:41.7]} 16. f4 {[%clk 0:08:43.5]} 16... Rb8
{[%clk 0:08:40.7]} 17. Qxa7 {[%clk 0:07:34]} 17... Rxb2 {[%clk 0:08:30.9]} 18.
Rfd1 {[%clk 0:06:26.3]} 18... dxc4 {[%clk 0:06:05.1]} 19. Bxc4 {[%clk
0:06:20.2]} 19... Bb6 {[%clk 0:05:25.4]} 20. Qa6 {[%clk 0:05:45.6]} 20... Bc7
{[%clk 0:02:22.3]} 21. Na4 {[%clk 0:04:58.3]} 21... Rxd2 {[%clk 0:01:49]} 22.
Rxd2 {[%clk 0:05:00.2]} 22... Qxa3 {[%clk 0:01:49.6]} 23. Re1 {[%clk 0:04:25.5]}
23... Rb8 {[%clk 0:00:47.1]} 24. Qxc6 {[%clk 0:03:49.2]} 24... Ba5 {[%clk
0:00:40.5]} 25. Rd3 {[%clk 0:03:17.4]} 25... Qb4 {[%clk 0:00:21.4]} 26. Red1
{[%clk 0:03:09.8]} 26... Qe7 {[%clk 0:00:18.1]} 27. Rb3 {[%clk 0:02:58]} 27...
Rd8 {[%clk 0:00:13.8]} 28. Qc5 {[%clk 0:02:45.6]} 28... Qxc5 {[%clk 0:00:07.3]}
29. Nxc5 {[%clk 0:02:47.5]} 29... Bc7 {[%clk 0:00:07.4]} 30. g3 {[%clk
0:02:37.6]} 30... h5 {[%clk 0:00:06.7]} 31. Kg2 {[%clk 0:02:37.6]} 31... g6
{[%clk 0:00:06.7]} 32. Kf3 {[%clk 0:02:38.4]} 32... Kg7 {[%clk 0:00:07]} 33. Rb7
{[%clk 0:02:38.7]} 33... Rc8 {[%clk 0:00:08]} 34. Ra1 {[%clk 0:02:37.9]} 34...
Kg8 {[%clk 0:00:07.8]} 35. Raa7 {[%clk 0:02:38.5]} 1-0

[Event "GrandPrix_29.05"]
[Site "Chess.com"]
[Date "2020.05.29"]
[Round "2"]
[White "Bulldog167"]
[Black "PotapovaM"]
[Result "1-0"]
[WhiteElo "2550"]
[BlackElo "2185"]
[TimeControl "600+2"]
[EndTime "9:54:03 PDT"]
[Termination "Bulldog167 won by resignation"]

1. c4 {[%clk 0:10:01.5]} 1... Nf6 {[%clk 0:10:00.2]} 2. Nc3 {[%clk 0:10:01.9]}
2... e6 {[%clk 0:10:01.1]} 3. Nf3 {[%clk 0:09:59.7]} 3... d5 {[%clk 0:10:01.7]}
4. d4 {[%clk 0:10:00.1]} 4... a6 {[%clk 0:09:56.6]} 5. cxd5 {[%clk 0:09:59.1]}
5... exd5 {[%clk 0:09:58.5]} 6. Bg5 {[%clk 0:09:58.6]} 6... Be6 {[%clk
0:09:59.3]} 7. Bxf6 {[%clk 0:09:51]} 7... Qxf6 {[%clk 0:10:01.2]} 8. Qb3 {[%clk
0:09:52.1]} 8... Ra7 {[%clk 0:10:02.3]} 9. g3 {[%clk 0:09:42.2]} 9... Nd7 {[%clk
0:08:26.5]} 10. Nxd5 {[%clk 0:08:08.4]} 10... Qd8 {[%clk 0:08:20.2]} 11. Qe3
{[%clk 0:08:03.9]} 11... Bd6 {[%clk 0:07:04.7]} 12. Bh3 {[%clk 0:07:39.3]} 12...
O-O {[%clk 0:05:15.2]} 13. Bxe6 {[%clk 0:07:38.1]} 13... fxe6 {[%clk 0:05:16.3]}
14. Qxe6+ {[%clk 0:07:39.1]} 14... Kh8 {[%clk 0:05:17.2]} 15. O-O {[%clk
0:06:21.2]} 15... Ra8 {[%clk 0:04:15.5]} 16. Rac1 {[%clk 0:05:42.5]} 16... Re8
{[%clk 0:03:46.9]} 17. Qf5 {[%clk 0:05:41.8]} 17... Rf8 {[%clk 0:03:35.2]} 18.
Qd3 {[%clk 0:05:31.6]} 18... c6 {[%clk 0:03:33.5]} 19. Nc3 {[%clk 0:05:32.1]}
19... Qf6 {[%clk 0:03:30.9]} 20. Ne4 {[%clk 0:05:31.2]} 20... Qe7 {[%clk
0:03:29.9]} 21. Nxd6 {[%clk 0:05:02.1]} 21... Qxd6 {[%clk 0:03:31.8]} 22. Ng5
{[%clk 0:04:31.9]} 22... g6 {[%clk 0:03:29]} 23. f4 {[%clk 0:04:16.5]} 23...
Rae8 {[%clk 0:03:27.4]} 24. e4 {[%clk 0:04:15.6]} 24... h6 {[%clk 0:03:25.8]}
25. Nf3 {[%clk 0:04:16.5]} 25... Kh7 {[%clk 0:03:17.1]} 26. e5 {[%clk
0:03:51.4]} 26... Qe6 {[%clk 0:03:07.1]} 27. Qb3 {[%clk 0:03:38.7]} 27... Qxb3
{[%clk 0:02:59.2]} 28. axb3 {[%clk 0:03:40.6]} 28... Nb6 {[%clk 0:03:01.1]} 29.
Nd2 {[%clk 0:03:20.1]} 29... Nd5 {[%clk 0:02:48.5]} 30. Ne4 {[%clk 0:03:18.9]}
30... Re7 {[%clk 0:02:47.9]} 31. Rfe1 {[%clk 0:03:00.1]} 31... Kg7 {[%clk
0:02:47.6]} 32. Rcd1 {[%clk 0:02:56.7]} 32... Rd8 {[%clk 0:02:38.7]} 33. Nc3
{[%clk 0:02:56.8]} 33... Nb4 {[%clk 0:02:36.8]} 34. Rd2 {[%clk 0:02:52.8]} 34...
h5 {[%clk 0:02:34.5]} 35. Kf2 {[%clk 0:02:53]} 35... Red7 {[%clk 0:02:31.3]} 36.
Red1 {[%clk 0:02:45.3]} 36... Kf7 {[%clk 0:02:21.3]} 37. Kf3 {[%clk 0:02:45.1]}
37... Ke6 {[%clk 0:02:15.5]} 38. Ke4 {[%clk 0:02:46.2]} 38... b6 {[%clk
0:02:04.1]} 39. h3 {[%clk 0:02:45.4]} 39... Rf8 {[%clk 0:01:54.2]} 40. d5+
{[%clk 0:02:31.5]} 40... cxd5+ {[%clk 0:01:54.5]} 41. Nxd5 {[%clk 0:02:33]}
41... Nc6 {[%clk 0:01:53.1]} 42. Nxb6 {[%clk 0:02:22]} 42... Rxd2 {[%clk
0:01:41.7]} 43. Rxd2 {[%clk 0:02:23.9]} 43... Na5 {[%clk 0:01:43.3]} 44. Rd6+
{[%clk 0:02:16.2]} 44... Ke7 {[%clk 0:01:43.5]} 45. b4 {[%clk 0:02:15.5]} 45...
Nb3 {[%clk 0:01:44.1]} 46. Nd5+ {[%clk 0:02:13.2]} 46... Ke8 {[%clk 0:01:43.4]}
47. Rxa6 {[%clk 0:02:11.6]} 47... Nd2+ {[%clk 0:01:40.1]} 48. Kd3 {[%clk
0:02:11.1]} 48... Nf1 {[%clk 0:01:41.1]} 49. Ra8+ {[%clk 0:02:08.6]} 49... Kf7
{[%clk 0:01:41.6]} 50. e6+ {[%clk 0:02:09.6]} 1-0

[Event "GrandPrix_29.05"]
[Site "Chess.com"]
[Date "2020.05.29"]
[Round "2"]
[White "Misterlose0"]
[Black "Nikithebest"]
[Result "1-0"]
[WhiteElo "1486"]
[BlackElo "2153"]
[TimeControl "600+2"]
[EndTime "9:54:03 PDT"]
[Termination "Misterlose0 won by resignation"]

1. e4 {[%clk 0:09:57.9]} 1... c5 {[%clk 0:10:00.3]} 2. d3 {[%clk 0:09:58.2]}
2... d5 {[%clk 0:09:58.9]} 3. exd5 {[%clk 0:10:00.1]} 3... Nf6 {[%clk
0:09:54.5]} 4. c4 {[%clk 0:09:58.6]} 4... e6 {[%clk 0:09:53.8]} 5. dxe6 {[%clk
0:10:00.5]} 5... Bxe6 {[%clk 0:09:54.7]} 6. Nf3 {[%clk 0:09:51.8]} 6... Nc6
{[%clk 0:09:47]} 7. Be2 {[%clk 0:09:52.3]} 7... Bd6 {[%clk 0:09:34.2]} 8. Nc3
{[%clk 0:09:49.9]} 8... a6 {[%clk 0:09:28.5]} 9. O-O {[%clk 0:09:50.8]} 9... Qc7
{[%clk 0:09:29.5]} 10. Bg5 {[%clk 0:09:10.3]} 10... Ng4 {[%clk 0:09:07.1]} 11.
h3 {[%clk 0:09:06.1]} 11... h6 {[%clk 0:09:08]} 12. Bd2 {[%clk 0:08:17]} 12...
Nf6 {[%clk 0:08:54.6]} 13. Be3 {[%clk 0:07:15.2]} 13... O-O-O {[%clk 0:08:30.1]}
14. Na4 {[%clk 0:06:25.1]} 14... Nd7 {[%clk 0:05:48]} 15. d4 {[%clk 0:06:11.3]}
15... cxd4 {[%clk 0:05:46.5]} 16. Bxd4 {[%clk 0:03:54]} 16... Nxd4 {[%clk
0:04:34.9]} 17. Nxd4 {[%clk 0:03:55.9]} 17... Nc5 {[%clk 0:04:27.3]} 18. Nxc5
{[%clk 0:02:58]} 18... Bxc5 {[%clk 0:04:18]} 19. Nxe6 {[%clk 0:02:59.1]} 19...
Rxd1 {[%clk 0:04:06.8]} 20. Nxc7 {[%clk 0:02:58.4]} 20... Rxa1 {[%clk
0:04:08.3]} 21. Rxa1 {[%clk 0:02:55.7]} 21... Kxc7 {[%clk 0:04:09.4]} 22. Bf3
{[%clk 0:02:37.7]} 22... Rd8 {[%clk 0:04:08.5]} 23. Bd5 {[%clk 0:02:37.1]} 23...
b5 {[%clk 0:04:02.4]} 24. b3 {[%clk 0:02:34.9]} 24... bxc4 {[%clk 0:04:01.7]}
25. bxc4 {[%clk 0:02:36.8]} 25... Rb8 {[%clk 0:03:50.4]} 26. Bxf7 {[%clk
0:01:52.4]} 26... Rb2 {[%clk 0:03:50.8]} 27. Kh1 {[%clk 0:01:50.2]} 27... Rxf2
{[%clk 0:03:47.6]} 28. Bd5 {[%clk 0:01:44.7]} 28... a5 {[%clk 0:03:47.9]} 29. a4
{[%clk 0:01:24.6]} 29... Bd6 {[%clk 0:03:37.3]} 30. Rb1 {[%clk 0:01:23.4]} 30...
Bg3 {[%clk 0:03:15]} 31. c5 {[%clk 0:00:44.6]} 31... Rc2 {[%clk 0:03:06]} 32. c6
{[%clk 0:00:44.6]} 32... Kd6 {[%clk 0:02:57.9]} 33. Bf3 {[%clk 0:00:37.1]} 33...
Ra2 {[%clk 0:02:35.6]} 34. Rd1+ {[%clk 0:00:32.4]} 34... Ke6 {[%clk 0:02:13.4]}
35. Bd5+ {[%clk 0:00:30.4]} 1-0